fUST/lending_fUST_20250622
["ID","MTS","AMOUNT","RATE_DAILY","PERIOD"]
[366879443,1750542640489,-137428.03535637,0.00025021,2]
[366879445,1750542640499,-965.0,0.00025031,2]
[366879446,1750542640508,-654.0,0.00025031,2]
[366879448,1750542640518,-2161.0,0.00025031,2]
[366879449,1750542640527,-236.3477381,0.00025072,12]
[366879450,1750542640536,-168.0,0.00025116,2]
[366879452,1750542640546,-499.06,0.000252,31]
[366879453,1750542640555,-499.06,0.000252,31]
[366879454,1750542640564,-499.06,0.000252,31]
[366879455,1750542640574,-499.06,0.000252,31]
[366879456,1750542640583,-499.06,0.000252,31]
[366879457,1750542640592,-499.06,0.000252,31]
[366879458,1750542640601,-499.06,0.000252,31]
[366879459,1750542640610,-499.06,0.000252,31]
[366879460,1750542640620,-499.06,0.000252,31]
[366879461,1750542640629,-499.06,0.000252,31]
[366879462,1750542640640,-499.06,0.000252,31]
[366879463,1750542640649,-499.06,0.000252,31]
[366879464,1750542640658,-499.06,0.000252,31]
[366879465,1750542640668,-499.06,0.000252,31]
[366879466,1750542640677,-499.06,0.000252,31]
[366879467,1750542640687,-499.06,0.000252,31]
[366879468,1750542640696,-236.3477381,0.0002521,12]
[366879469,1750542640705,-500.0,0.00025287,7]
[366879470,1750542640715,-352.56146568,0.00025288,2]
[366879471,1750542640724,-587.64310992,0.00025288,2]
[366879472,1750542640733,-460.0,0.00025288,2]
[366879473,1750542640742,-468.06845428,0.00025288,2]
[366879474,1750542640752,-469.13338259,0.00025299,2]
[366879475,1750542640761,-164.1306636,0.00025299,2]
[366879476,1750542640771,-460.0,0.00025299,2]
[366879477,1750542640780,-469.71192103,0.00025299,2]
[366879478,1750542640789,-2000.0,0.000253,2]
[366879479,1750542640799,-2000.0,0.000253,2]
[366879480,1750542640808,-640.0,0.000253,2]
[366879481,1750542640818,-30181.71314171,0.00025305,2]
[366879482,1750542640830,-3990.0,0.00025305,2]
[366879585,1750542643198,-85778.65521763,0.00025305,2]
[366879586,1750542643210,-28864.00421976,0.00025305,2]
[366879587,1750542643222,-15866.394,0.00025305,2]
[366879629,1750542646087,-460.0,0.00021917,2]
[366879630,1750542646097,-263.31400616,0.00022554,2]
[366879631,1750542646106,-1861.90766047,0.00024953,2]
[366879632,1750542646146,-3138.09233953,0.00024953,2]
[366879633,1750542646156,-36229.8899129,0.00025305,2]
[366879634,1750542646165,-164.81,0.00025326,10]
[366879635,1750542646175,-460.0,0.00025332,2]
[366879636,1750542646188,-287.91233316,0.00025332,2]
[366879637,1750542646197,-416.80915147,0.00025332,2]
[366879638,1750542646207,-436.95386115,0.00025332,2]
[366879639,1750542646216,-460.0,0.00025332,2]
[366879640,1750542646226,-460.0,0.00025332,2]
[366879641,1750542646235,-460.0,0.00025332,2]
[366879642,1750542646245,-484.74,0.00025336,3]
[366879643,1750542646255,-242.37,0.00025336,3]
[366879645,1750542646266,-727.15,0.00025336,3]
[366879646,1750542646275,-158.32,0.00025336,3]
[366879648,1750542646284,-200910.656492,0.00025336,2]
[366879650,1750542646293,-215.0738,0.00025336,2]
[366879652,1750542646302,-467.90001521,0.00025345,2]
[366879654,1750542646311,-151.0,0.00025346,7]
[366879656,1750542646320,-151.0,0.00025346,7]
[366879658,1750542646329,-151.0,0.00025346,7]
[366879660,1750542646339,-2547.53519499,0.00025346,2]
[366879661,1750542646348,-5338.09958969,0.00025346,2]
[366879662,1750542646357,-846.23824438,0.00025346,3]
[366879663,1750542646366,-846.23824438,0.00025346,7]
[366879664,1750542646375,-523.9660634,0.00025346,30]
[366879665,1750542646384,-250024.24475772,0.00025346,20]
[366879666,1750542646397,-386.27,0.00025346,20]
[366879667,1750542646408,-2753.96298015,0.00025346,20]
[366879672,1750543548106,-5000.0,0.00020841,2]
[366879673,1750543548126,-160.834807,0.00021888,2]
[366879674,1750543548157,-452.27961743,0.000219,6]
[366879675,1750543548179,-300.0,0.00021915,2]
[366879676,1750543548201,-300.0,0.00021915,2]
[366879677,1750543548223,-208.34986696,0.00021916,2]
[366879678,1750543548243,-200.58115258,0.00021916,2]
[366879679,1750543548264,-1200.0,0.00021916,2]
[366879680,1750543548285,-460.0,0.00021917,2]
[366879681,1750543548306,-460.0,0.00021917,2]
[366879682,1750543548328,-460.0,0.00021917,2]
[366879683,1750543548348,-460.0,0.00021917,2]
[366879684,1750543548369,-266.79445712,0.00021917,2]
[366879685,1750543548520,-460.0,0.00021917,2]
[366879686,1750543548545,-460.0,0.00021917,2]
[366879687,1750543548570,-460.0,0.00021917,2]
[366879688,1750543548592,-380.78459786,0.00021917,2]
[366879689,1750543548616,-460.0,0.00021917,2]
[366879690,1750543548639,-460.0,0.00021917,2]
[366879691,1750543548681,-452.27961715,0.00022038,6]
[366879692,1750543548712,-452.27961715,0.00022176,6]
[366879693,1750543548742,-452.27961715,0.00022314,7]
[366879694,1750543548769,-491.1,0.00022325,2]
[366879695,1750543548791,-427.66326142,0.00022325,2]
[366879696,1750543548822,-452.27961715,0.00022452,7]
[366879697,1750543548844,-420.0,0.00022553,2]
[366879698,1750543548866,-460.0,0.00022553,2]
[366879699,1750543548887,-449.48320959,0.00022553,2]
[366879700,1750543548913,-452.71929364,0.00022553,2]
[366879701,1750543548936,-460.0,0.00022553,2]
[366879702,1750543548958,-460.0,0.00022553,2]
[366879703,1750543548981,-515.05,0.00022553,2]
[366879704,1750543549010,-452.27961715,0.0002259,7]
[366879705,1750543549038,-452.27961715,0.00022728,7]
[366879706,1750543549065,-452.27961715,0.00022866,8]
[366879707,1750543549088,-460.0,0.00023001,2]
[366879708,1750543549110,-483.58,0.00023001,2]
[366879709,1750543549131,-460.0,0.00023002,2]
[366879710,1750543549156,-460.0,0.00023002,2]
[366879711,1750543549178,-460.0,0.00023002,2]
[366879712,1750543549202,-535.33,0.00023002,2]
[366879713,1750543549226,-460.0,0.00023002,2]
[366879714,1750543549251,-460.0,0.00023002,2]
[366879715,1750543549274,-460.0,0.00023002,2]
[366879716,1750543549296,-460.0,0.00023002,2]
[366879717,1750543549318,-460.0,0.00023002,2]
[366879718,1750543549339,-435.39795241,0.00023003,2]
[366879719,1750543549360,-460.0,0.00023003,2]
[366879720,1750543549381,-439.05837421,0.00023003,2]
[366879721,1750543549412,-452.27961715,0.00023003,8]
[366879722,1750543549441,-452.27961715,0.00023141,8]
[366879723,1750543549462,-169.42703452,0.00023182,2]
[366879724,1750543549483,-500.0,0.00023205,2]
[366879725,1750543549503,-446.35625141,0.00023227,2]
[366879726,1750543549531,-452.27961715,0.00023279,8]
[366879727,1750543549552,-500.0,0.00023347,2]
[366879728,1750543549572,-500.0,0.0002336,2]
[366879729,1750543549593,-1447.8518028,0.00023363,2]
[366879730,1750543549613,-460.0,0.00023416,2]
[366879731,1750543549634,-460.0,0.00023416,2]
[366879732,1750543549656,-510.374031,0.00023416,2]
[366879733,1750543549677,-460.0,0.00023416,2]
[366879734,1750543549698,-460.0,0.00023416,2]
[366879735,1750543549720,-499.68464281,0.00023416,2]
[366879736,1750543549741,-460.0,0.00023416,2]
[366879737,1750543549765,-460.0,0.00023416,2]
[366879738,1750543549793,-452.27961715,0.00023417,9]
[366879739,1750543549821,-452.27961715,0.00023555,9]
[366879740,1750543549843,-3000.0,0.000236,2]
[366879741,1750543549863,-3000.0,0.0002361,2]
[366879742,1750543549885,-3000.0,0.0002362,2]
[366879743,1750543549908,-3000.0,0.0002363,2]
[366879744,1750543549930,-358.36902913,0.00023639,2]
[366879745,1750543549950,-460.0,0.00023639,2]
[366879746,1750543549971,-3000.0,0.0002364,2]
[366879747,1750543549993,-500.0,0.00023649,2]
[366879748,1750543550017,-581.78607567,0.00023649,2]
[366879749,1750543550038,-500.0,0.00023649,2]
[366879750,1750543550063,-581.78607567,0.00023649,2]
[366879751,1750543550084,-485.03952876,0.00023649,2]
[366879752,1750543550104,-329.04670572,0.00023649,2]
[366879753,1750543550128,-581.78607567,0.00023649,2]
[366879754,1750543550153,-581.78607567,0.00023649,2]
[366879755,1750543550176,-581.78607567,0.00023649,2]
[366879756,1750543550198,-581.78607567,0.00023649,2]
[366879757,1750543550221,-581.78607567,0.00023649,2]
[366879758,1750543550243,-581.78607567,0.00023649,2]
[366879759,1750543550265,-581.78607567,0.00023649,2]
[366879760,1750543550288,-280.40046512,0.00023649,2]
[366879762,1750543623309,323.417276,0.00013699,2]
[366879763,1750543625081,-323.417276,0.00020187,2]
[366879764,1750543625104,-2797.84985685,0.00023413,2]
[366879765,1750543625126,-300.0,0.00023648,2]
[366879766,1750543625148,-3000.0,0.0002365,2]
[366879767,1750543625170,-460.0,0.00023658,2]
[366879768,1750543625192,-460.0,0.00023659,2]
[366879769,1750543625215,-503.71871251,0.00023659,2]
[366879770,1750543625238,-300.0,0.00023659,2]
[366879771,1750543625260,-3000.0,0.0002366,2]
[366879772,1750543625282,-3000.0,0.0002367,2]
[366879773,1750543625304,-3000.0,0.0002368,2]
[366879774,1750543625329,-3000.0,0.0002369,2]
[366879775,1750543625350,-3000.0,0.000237,2]
[366879776,1750543625372,-460.0,0.00023709,2]
[366879777,1750543625394,-3000.0,0.0002371,2]
[366879778,1750543625416,-460.0,0.00023719,2]
[366879779,1750543625440,-3000.0,0.0002372,2]
[366879780,1750543625463,-3000.0,0.0002373,2]
[366879781,1750543625486,-3000.0,0.0002374,2]
[366879782,1750543625509,-3000.0,0.0002375,2]
[366879783,1750543625531,-460.0,0.00023759,2]
[366879784,1750543625552,-580.332694,0.00023759,2]
[366879785,1750543625574,-500.0,0.00023759,7]
[366879786,1750543625599,-500.0,0.00023759,2]
[366879787,1750543625622,-500.0,0.00023759,2]
[366879788,1750543625646,-189.52767014,0.00023759,2]
[366879789,1750543625671,-500.0,0.00023759,2]
[366879790,1750543625802,-500.0,0.00023759,2]
[366879791,1750543625829,-500.0,0.00023759,2]
[366879792,1750543625857,-500.0,0.00023759,2]
[366879793,1750543625884,-500.0,0.00023759,2]
[366879794,1750543625909,-500.0,0.00023759,2]
[366879795,1750543625934,-500.0,0.00023759,2]
[366879796,1750543625963,-500.0,0.00023759,2]
[366879797,1750543625989,-500.0,0.00023759,2]
[366879798,1750543626014,-500.0,0.00023759,2]
[366879799,1750543626039,-500.0,0.00023759,2]
[366879800,1750543626065,-500.0,0.00023759,2]
[366879801,1750543626090,-500.0,0.00023759,2]
[366879802,1750543626115,-500.0,0.00023759,2]
[366879803,1750543626141,-500.0,0.00023759,2]
[366879804,1750543626165,-521.58662478,0.00023759,2]
[366879805,1750543626190,-500.0,0.00023759,2]
[366879806,1750543626215,-500.0,0.00023759,2]
[366879807,1750543626237,-5931.717867,0.0002376,2]
[366879808,1750543626259,-500.0,0.00023799,2]
[366879809,1750543626281,-500.0,0.00023822,2]
[366879810,1750543626303,-500.0,0.00023908,2]
[366879811,1750543626324,-523.9660634,0.00024,3]
[366879812,1750543626346,-523.9660634,0.00024,3]
[366879813,1750543626369,-207.4,0.00024049,2]
[366879814,1750543626391,-500.0,0.0002418,2]
[366879815,1750543626413,-504.33144106,0.00024225,2]
[366879816,1750543626436,-500.0,0.00024307,8]
[366879817,1750543626460,-158.6161859,0.00024521,2]
[366879818,1750543626483,-176.6642544,0.00024521,2]
[366879819,1750543626504,-295.099902,0.00024521,2]
[366879820,1750543626527,-1000.0,0.00024658,2]
[366879821,1750543626550,-1000.0,0.00024658,2]
[366879822,1750543626572,-331.06789931,0.00024658,2]
[366879823,1750543626594,-1000.0,0.00024658,2]
[366879824,1750543626617,-500.0,0.00024764,2]
[366879825,1750543626639,-7882.95325705,0.000248,2]
[366879902,1750543832469,-1000.0,0.00024658,2]
[366879904,1750543832478,-340.886372,0.00024839,4]
[366879906,1750543832488,-500.0,0.00024855,9]
[366879908,1750543832498,-1563.67,0.000249,2]
[366879910,1750543832508,-523.9660634,0.00025,10]
[366879912,1750543832517,-300.0,0.0002503,2]
[366879914,1750543832528,-249.539,0.00025031,2]
[366879916,1750543832537,-250.0,0.00025031,2]
[366879918,1750543832547,-258.761,0.00025031,2]
[366879920,1750543832557,-216.207,0.00025031,2]
[366879922,1750543832567,-965.0,0.00025031,2]
[366879924,1750543832576,-654.0,0.00025031,2]
[366879926,1750543832586,-2161.0,0.00025031,2]
[366879928,1750543832596,-406.0,0.00025031,2]
[366879930,1750543832606,-160.0,0.00025189,2]
[366879932,1750543832616,-507.19,0.000252,31]
[366879934,1750543832625,-1.5031913,0.000252,31]
[366880183,1750543838125,-505.6868087,0.000252,31]
[366880184,1750543838136,-507.19,0.000252,31]
[366880185,1750543838146,-507.19,0.000252,31]
[366880186,1750543838156,-507.19,0.000252,31]
[366880187,1750543838165,-507.19,0.000252,31]
[366880188,1750543838175,-507.19,0.000252,31]
[366880189,1750543838185,-507.19,0.000252,31]
[366880190,1750543838195,-507.19,0.000252,31]
[366880191,1750543838209,-507.19,0.000252,31]
[366880192,1750543838218,-190.6335513,0.000252,31]
[366880204,1750543839123,-316.5564487,0.000252,31]
[366880205,1750543839134,-507.19,0.000252,31]
[366880206,1750543839145,-507.19,0.000252,31]
[366880207,1750543839155,-507.19,0.000252,31]
[366880208,1750543839166,-507.19,0.000252,31]
[366880209,1750543839177,-507.19,0.000252,31]
[366880210,1750543839186,-168.0,0.00025246,2]
[366880211,1750543839196,-2000.0,0.000253,2]
[366880212,1750543839209,-1551.60312556,0.000253,2]
[366880213,1750543839222,-448.39687444,0.000253,2]
[366880214,1750543839232,-640.0,0.000253,2]
[366880215,1750543839242,-379.4127,0.000253,2]
[366880216,1750543839252,-207.4,0.00025332,2]
[366880217,1750543839262,-475.85,0.00025337,3]
[366880218,1750543839271,-237.92,0.00025337,3]
[366880219,1750543839281,-713.8,0.00025337,3]
[366880220,1750543839290,-478.12,0.00025346,2]
[366880221,1750543839300,-406.2328858,0.00025346,2]
[366880222,1750543839309,-500.0,0.00025346,2]
[366880223,1750543839319,-482.66936909,0.00025346,2]
[366880224,1750543839328,-500.0,0.00025346,2]
[366880225,1750543839337,-500.0,0.00025346,2]
[366880226,1750543839347,-500.0,0.00025346,2]
[366880227,1750543839357,-500.0,0.00025346,2]
[366880228,1750543839367,-500.0,0.00025346,2]
[366880229,1750543839377,-500.0,0.00025346,2]
[366880230,1750543839386,-500.0,0.00025346,2]
[366880231,1750543839396,-500.0,0.00025346,2]
[366880232,1750543839406,-500.0,0.00025346,2]
[366880233,1750543839415,-500.0,0.00025346,2]
[366880234,1750543839426,-500.0,0.00025346,2]
[366880235,1750543839435,-500.0,0.00025346,2]
[366880236,1750543839445,-500.0,0.00025346,2]
[366880237,1750543839455,-500.0,0.00025346,2]
[366880238,1750543839465,-372.11759741,0.00025346,2]
[366880240,1750543839481,-220.04614138,0.00025346,2]
[366880242,1750543839491,-500.0,0.00025346,2]
[366880243,1750543839501,-500.0,0.00025346,2]
[366880244,1750543839511,-500.0,0.00025346,2]
[366880245,1750543839520,-500.0,0.00025346,2]
[366880246,1750543839529,-500.0,0.00025346,2]
[366880247,1750543839539,-500.0,0.00025346,2]
[366880248,1750543839548,-500.0,0.00025346,2]
[366880249,1750543839558,-500.0,0.00025346,2]
[366880250,1750543839568,-250.0,0.00025346,2]
[366880251,1750543839578,-1273.7675975,0.00025346,2]
[366880252,1750543839587,-5697.68626111,0.00025347,20]
[366880253,1750543839604,-815.278153,0.00025347,20]
[366880254,1750543839616,-1067.56713816,0.00025347,20]
[366880306,1750543840456,-460.0,0.00023416,2]
[366880308,1750543840467,-346.03715028,0.00023659,2]
[366880309,1750543840479,-68.93270271,0.00023659,2]
[366880311,1750543840489,-957.58814572,0.0002484,7]
[366880313,1750543840500,-2502.39999994,0.0002484,7]
[366880458,1750543846225,-460.0,0.00021917,2]
[366880459,1750543846235,-435.07374364,0.00021917,2]
[366880460,1750543846245,-460.0,0.00023002,2]
[366880461,1750543846254,-460.0,0.00023002,2]
[366880462,1750543846264,-460.0,0.00023002,2]
[366880463,1750543846274,-350.0,0.00023002,2]
[366880464,1750543846284,-460.0,0.00023002,2]
[366880465,1750543846294,-440.0,0.00023639,2]
[366880466,1750543846304,-460.0,0.00023659,2]
[366880467,1750543846314,-460.0,0.00023659,2]
[366880468,1750543846324,-460.0,0.00023719,2]
[366880469,1750543846333,-460.0,0.00023999,2]
[366880470,1750543846342,-8174.52000362,0.0002484,7]
[366880477,1750543846914,-460.0,0.00023002,2]
[366880478,1750543846923,-8321.92824242,0.0002484,7]
[366880481,1750544084434,2950.07466208,0.000222,69]
[366880482,1750544089488,2950.07466205,0.00022678,71]
[366880483,1750544092474,1550.1,0.00014905,30]
[366880484,1750544092942,3100.2,0.0001626,30]
[366880485,1750544093335,4650.29,0.00017615,30]
[366880486,1750544093934,6200.39,0.0001897,30]
[366880487,1750544094178,7750.49,0.00020325,30]
[366880488,1750544094809,9300.59,0.0002168,30]
[366880489,1750544171161,1372.54,0.00015356,30]
[366880490,1750544171547,2745.08,0.00016753,30]
[366880491,1750544172057,4117.62,0.00018149,30]
[366880492,1750544172561,5490.16,0.00019545,30]
[366880493,1750544172972,6862.7,0.00020941,30]
[366880494,1750544173395,8235.25,0.00022337,30]
[366880495,1750544252948,1215.32,0.00013989,30]
[366880496,1750544253341,2430.65,0.0001526,30]
[366880497,1750544253748,3645.97,0.00016532,30]
[366880498,1750544254362,4861.29,0.00017804,30]
[366880499,1750544254779,6076.61,0.00019075,30]
[366880500,1750544255187,7291.94,0.00020347,30]
[366880501,1750544255596,8507.26,0.00021619,30]
[366880502,1750544256214,9722.58,0.0002289,30]
[366880503,1750544331940,976.68,0.00015618,30]
[366880504,1750544332537,1953.35,0.00017038,30]
[366880505,1750544332935,2930.03,0.00018457,30]
[366880506,1750544333376,3906.71,0.00019877,30]
[366880507,1750544333816,4883.39,0.00021297,30]
[366880508,1750544334243,5860.06,0.00022717,30]
[366880509,1750544373201,304.0,0.00024308,120]
[366880510,1750544373718,304.0,0.00024298,120]
[366880511,1750544374202,304.0,0.00024288,120]
[366880512,1750544377236,-304.0,0.00024869,120]
[366880513,1750544377257,-155.53,0.00024879,120]
[366880525,1750544597938,1770.04479723,0.000222,69]
[366880526,1750544602939,1770.04479723,0.00022678,71]
[366880528,1750544733172,167.0,0.00023352,120]
[366880529,1750544733613,167.0,0.00023342,120]
[366880530,1750544734088,167.0,0.00023332,120]
[366880532,1750544763727,339.17108,0.00013699,2]
[366880534,1750544854097,-1556.72522567,0.00019986,2]
[366880535,1750544854125,-339.17108,0.00020187,2]
[366880536,1750544854152,-165.928655,0.00021373,2]
[366880537,1750544854184,-500.0,0.00021916,2]
[366880538,1750544854210,-374.96591134,0.00021916,2]
[366880539,1750544854236,-381.94431589,0.00021916,2]
[366880540,1750544854262,-300.0,0.00021916,2]
[366880541,1750544854287,-300.0,0.00021916,2]
[366880542,1750544854312,-434.85778017,0.00021917,2]
[366880543,1750544854335,-210.42232648,0.00021917,2]
[366880544,1750544854358,-460.0,0.00021917,2]
[366880545,1750544854382,-440.0,0.00021917,2]
[366880546,1750544854405,-460.0,0.00021917,2]
[366880547,1750544854428,-460.0,0.00021917,2]
[366880548,1750544854452,-460.0,0.00021917,2]
[366880549,1750544854475,-460.0,0.00021917,2]
[366880550,1750544854498,-460.0,0.00021917,2]
[366880551,1750544854520,-460.0,0.00021917,2]
[366880552,1750544854545,-460.0,0.00021917,2]
[366880553,1750544854568,-460.0,0.00021917,2]
[366880554,1750544854591,-460.0,0.00021917,2]
[366880555,1750544854615,-425.75651556,0.00021917,2]
[366880556,1750544854638,-433.71314164,0.00021917,2]
[366880557,1750544854660,-460.0,0.00021917,2]
[366880558,1750544854682,-235.46541511,0.00021917,2]
[366880559,1750544854703,-465.51797769,0.00021917,2]
[366880560,1750544854724,-160.0,0.00022439,2]
[366880561,1750544854745,-160.0,0.00022439,2]
[366880562,1750544854767,-460.0,0.00022461,2]
[366880563,1750544854790,-468.28,0.00022461,2]
[366880564,1750544854812,-548.22,0.00022461,2]
[366880565,1750544854834,-460.0,0.00022461,2]
[366880566,1750544854859,-460.0,0.00022461,2]
[366880567,1750544854881,-460.0,0.00022461,2]
[366880568,1750544854904,-460.0,0.00022461,2]
[366880569,1750544854926,-460.0,0.00022461,2]
[366880570,1750544854947,-460.0,0.00022461,2]
[366880571,1750544854968,-460.0,0.00022461,2]
[366880572,1750544854989,-460.0,0.00022461,2]
[366880573,1750544855013,-513.84,0.00022461,2]
[366880574,1750544855034,-460.0,0.00022461,2]
[366880575,1750544855055,-460.0,0.00022461,2]
[366880576,1750544855076,-460.0,0.00022461,2]
[366880577,1750544855103,-460.0,0.00022461,2]
[366880578,1750544855124,-460.0,0.00022461,2]
[366880579,1750544855146,-460.0,0.00022461,2]
[366880580,1750544855168,-460.0,0.00022461,2]
[366880581,1750544855188,-460.0,0.00022461,2]
[366880582,1750544855209,-460.0,0.00022461,2]
[366880583,1750544855229,-464.23323852,0.00022462,2]
[366880584,1750544855250,-460.0,0.00022462,2]
[366880585,1750544855271,-460.0,0.00022462,2]
[366880586,1750544855292,-460.0,0.00022462,2]
[366880587,1750544855312,-460.0,0.00022462,2]
[366880588,1750544855333,-497.94737653,0.00022462,2]
[366880589,1750544855353,-405.68933282,0.00022462,2]
[366880590,1750544855373,-460.0,0.00022462,2]
[366880591,1750544855393,-464.74985695,0.00022462,2]
[366880592,1750544855413,-460.0,0.00022462,2]
[366880593,1750544855433,-429.99127717,0.00022462,2]
[366880594,1750544855454,-460.0,0.00022462,2]
[366880595,1750544855478,-460.0,0.00022462,2]
[366880596,1750544855500,-460.0,0.00022462,2]
[366880597,1750544855522,-460.0,0.00022462,2]
[366880598,1750544855544,-460.0,0.00022463,2]
[366880599,1750544855565,-423.6260986,0.00022463,2]
[366880600,1750544855585,-448.19171659,0.00022463,2]
[366880601,1750544855606,-447.99834481,0.00022463,2]
[366880602,1750544855627,-159.85759439,0.00022463,2]
[366880603,1750544855647,-462.27723472,0.00022463,2]
[366880604,1750544855670,-836.41202323,0.00022463,2]
[366880605,1750544855693,-424.93363889,0.00022466,2]
[366880606,1750544855716,-460.0,0.00022475,2]
[366880607,1750544855737,-400.0,0.00022475,2]
[366880608,1750544855759,-460.0,0.00022475,2]
[366880609,1750544855785,-513.84,0.00022475,2]
[366880610,1750544855806,-595.14037425,0.00022475,2]
[366880611,1750544855828,-460.0,0.00022475,2]
[366880612,1750544855852,-460.0,0.00022475,2]
[366880613,1750544855875,-460.0,0.00022475,2]
[366880614,1750544855896,-460.0,0.00022475,2]
[366880615,1750544855919,-222.62,0.00022475,2]
[366880616,1750544855941,-374.85168504,0.00022475,2]
[366880617,1750544855965,-500.0,0.00022475,2]
[366880618,1750544855991,-500.0,0.00022475,2]
[366880619,1750544856019,-500.0,0.00022475,2]
[366880620,1750544856050,-500.0,0.00022475,2]
[366880621,1750544856079,-500.0,0.00022475,2]
[366880622,1750544856106,-166.63755492,0.00022475,2]
[366880623,1750544856137,-500.0,0.00022475,2]
[366880624,1750544856164,-500.0,0.00022475,2]
[366880625,1750544856191,-500.0,0.00022475,2]
[366880626,1750544856305,-500.0,0.00022475,2]
[366880627,1750544856332,-500.0,0.00022475,2]
[366880628,1750544856358,-472.750846,0.00022475,2]
[366880629,1750544856384,-500.0,0.00022475,2]
[366880630,1750544856411,-500.0,0.00022475,2]
[366880631,1750544856436,-500.0,0.00022475,2]
[366880632,1750544856462,-500.0,0.00022475,2]
[366880633,1750544856488,-500.0,0.00022475,2]
[366880634,1750544856514,-500.0,0.00022475,2]
[366880635,1750544856540,-550.0,0.00022475,2]
[366880636,1750544856564,-460.0,0.00022476,2]
[366880637,1750544856585,-460.0,0.00022476,2]
[366880638,1750544856606,-476.84006694,0.00022476,2]
[366880639,1750544856628,-460.0,0.00022476,2]
[366880640,1750544856649,-411.46571415,0.00022476,2]
[366880641,1750544856671,-460.0,0.00022476,2]
[366880642,1750544856693,-460.0,0.00022476,2]
[366880643,1750544856715,-163.70109289,0.00022476,2]
[366880802,1750545037327,-165.9335609,0.00021,10]
[366880803,1750545037336,-1390.79166477,0.00021624,2]
[366880804,1750545037348,-271.35337123,0.00021624,2]
[366880805,1750545037356,-300.0,0.00022459,2]
[366880806,1750545037366,-460.0,0.0002246,2]
[366880807,1750545037375,-405.25132471,0.0002246,2]
[366880808,1750545037384,-460.0,0.0002246,2]
[366880809,1750545037393,-195.83104979,0.0002246,2]
[366880810,1750545037401,-460.0,0.0002246,2]
[366880811,1750545037411,-352.24875754,0.0002246,2]
[366880812,1750545037420,-460.0,0.0002246,2]
[366880813,1750545037431,-460.0,0.0002246,2]
[366880814,1750545037441,-460.0,0.0002246,2]
[366880815,1750545037451,-460.0,0.0002246,2]
[366880816,1750545037461,-460.0,0.00022461,2]
[366880817,1750545037470,-460.0,0.00022461,2]
[366880818,1750545037479,-467.61,0.00022461,2]
[366880819,1750545037488,-460.0,0.00022461,2]
[366880820,1750545037498,-460.0,0.00022461,2]
[366880821,1750545037507,-460.0,0.00022461,2]
[366880822,1750545037515,-460.0,0.00022461,2]
[366880823,1750545037524,-460.0,0.00022461,2]
[366880824,1750545037533,-460.0,0.00022461,2]
[366880825,1750545037543,-460.0,0.00022461,2]
[366880826,1750545037552,-460.0,0.00022461,2]
[366880827,1750545037561,-460.0,0.00022461,2]
[366880828,1750545037571,-138.24993882,0.00022461,2]
[366880835,1750545038142,-361.75006118,0.00022461,2]
[366880836,1750545038153,-87.98674685,0.00022461,2]
[366880838,1750545038233,-372.01325315,0.00022461,2]
[366880839,1750545038243,-460.0,0.00022461,2]